bitfinex/quotes_ETHUSD_20250925
["timestamp","ask_amount","ask_price","bid_price","bid_amount"]
[1758770416865,0.03062899,4081.1,4080.4,8.87773019]
[1758770417061,0.03062899,4081.1,4080.5,2.041]
[1758770418094,0.03062899,4081.1,4080.5,4.49165131]
[1758770418280,0.03062899,4081.1,4080.5,2.041]
[1758770418482,0.03062899,4081.1,4080.5,4.49167465]
[1758770418784,0.03062899,4081.1,4080.5,4.49166604]
[1758770419094,0.03062899,4081.1,4080.5,4.49167112]
[1758770419295,0.03062899,4081.1,4080.6,2.4506118]
[1758770419599,0.03062899,4081.1,4080.5,4.49167688]
[1758770419761,0.6855,4081.2,4080.6,2.45056301]
[1758770420082,2.45018499,4081.4,4080.5,5.37944034]
[1758770420261,2.48084869,4081.3,4080.5,5.37944034]
[1758770420463,2.45026326,4081.2,4080.5,2.92876769]
[1758770420691,0.71612749,4081.3,4078.6,2.4517886]
[1758770420873,0.71612749,4081.3,4080.0,2.45093365]
[1758770420874,2.45038272,4081.0,4080.0,2.45093365]
[1758770421190,2.45084669,4080.3,4079.9,2.041]
[1758770421389,0.6855,4080.2,4080.0,4.376]
[1758770421592,2.45080052,4080.3,4080.0,4.376]
[1758770421809,2.45092032,4080.1,4080.0,4.376]
[1758770421956,3.13642032,4080.1,4080.0,4.376]
[1758770422156,2.4512207,4079.6,4079.5,0.002]
[1758770422361,2.4512207,4079.6,4079.5,2.074]
[1758770422599,3.1367207,4079.6,4079.5,2.074]
[1758770422759,3.1367207,4079.6,4079.5,0.002]
[1758770422961,2.45094023,4080.1,4079.5,0.002]
[1758770422962,0.4406,4080.1,4079.5,0.002]
[1758770423201,0.6855,4080.4,4079.6,2.041]
[1758770423372,2.45043542,4081.0,4080.0,2.45093184]
[1758770423578,2.4508019,4080.3,4079.6,2.041]
[1758770423758,0.03063575,4080.2,4079.6,2.041]
[1758770423960,2.72640316,4080.2,4079.6,2.041]
[1758770424197,2.72640316,4080.2,4079.5,4.376]
[1758770424198,0.27553575,4080.2,4079.5,0.002]
[1758770424501,0.6855,4080.1,4079.6,4.38]
[1758770424701,2.45089389,4080.2,4079.6,4.38]
[1758770424702,2.4509085,4080.2,4079.6,4.38]
[1758770424910,0.2449,4080.5,4079.7,0.00794904]
[1758770425092,2.45074207,4080.4,4079.7,0.00794904]
[1758770425399,3.0,4081.0,4079.6,4.38]
[1758770425609,2.45086983,4080.2,4079.6,4.38]
[1758770425791,2.45098648,4080.0,4079.6,4.38]
[1758770425978,0.716138,4079.9,4079.5,0.002]
[1758770426176,0.716138,4079.9,4079.6,3.415]
[1758770426504,2.45116062,4079.7,4079.6,3.415]
[1758770426666,2.48180012,4079.7,4079.6,3.415]
[1758770427502,0.47123875,4079.8,4079.6,3.415]
[1758770427713,2.89170307,4079.8,4079.6,3.415]
[1758770427917,2.48180012,4079.7,4079.6,3.415]
[1758770428077,0.2449,4080.4,4079.6,3.415]
[1758770428266,2.45096164,4080.1,4079.6,3.415]
[1758770428466,0.38432461,4080.6,4079.6,3.415]
[1758770428667,2.45116062,4079.7,4079.6,3.415]
[1758770428899,3.13666062,4079.7,4079.6,3.415]
[1758770429104,2.4512207,4079.6,4079.5,0.002]
[1758770429267,3.1367207,4079.6,4079.5,4.374]
[1758770429665,3.72614491,4079.6,4079.5,0.002]
[1758770430607,6.72614491,4079.6,4079.5,0.002]
[1758770430778,6.69550466,4079.6,4079.5,0.002]
[1758770430982,11.85750466,4079.6,4079.5,0.002]
[1758770432279,11.85750466,4079.6,4079.1,1e-08]
[1758770432487,6.24346107,4079.2,4079.1,1e-08]
[1758770432883,2.45206218,4078.2,4078.1,1e-08]
[1758770433209,3.24406218,4078.2,4078.1,1e-08]
[1758770433380,6.92956218,4078.2,4078.1,1e-08]
[1758770433580,10.52056218,4078.2,4078.1,1e-08]
[1758770433982,6.13756218,4078.2,4078.1,1e-08]
[1758770434312,6.555616,4078.2,4078.1,1e-08]
[1758770434531,6.13756218,4078.2,4078.1,1e-08]
[1758770434691,0.38455972,4078.4,4078.1,1e-08]
[1758770435020,0.2449,4078.6,4078.1,1e-08]
[1758770435021,2.45206218,4078.2,4078.1,1e-08]
[1758770436998,2.69696218,4078.2,4078.1,1e-08]
[1758770437239,2.45206218,4078.2,4078.1,1e-08]
[1758770437437,2.45200654,4078.3,4078.1,1e-08]
[1758770437801,4.8186,4078.9,4078.1,1e-08]
[1758770437802,0.4406,4078.9,4078.1,1e-08]
[1758770438006,2.45168574,4078.9,4078.1,1e-08]
[1758770438239,0.2449,4079.1,4078.1,1e-08]
[1758770438536,2.45177056,4078.7,4078.1,1e-08]
[1758770438757,2.45167492,4078.9,4078.1,1e-08]
[1758770438936,2.45177422,4078.7,4078.1,0.00797218]
[1758770439141,2.45177422,4078.7,4078.1,1e-08]
[1758770439310,2.45177422,4078.7,4078.1,0.2466202]
[1758770439504,2.4517639,4078.7,4078.1,0.2466202]
[1758770439718,2.45171621,4078.8,4078.1,0.2466202]
[1758770439937,2.45178687,4078.7,4078.1,0.25459133]
[1758770440234,2.45171652,4078.8,4078.2,2.05097237]
[1758770440433,2.45154194,4079.1,4078.2,2.05097237]
[1758770440737,2.45174538,4078.8,4078.2,2.05097237]
[1758770440938,0.6855,4079.3,4078.2,2.043]
[1758770441098,2.45168401,4078.9,4078.2,8.87005224]
[1758770441305,2.48237341,4078.8,4078.3,0.88700523]
[1758770441503,2.45176427,4078.7,4078.3,0.88700523]
[1758770441802,0.03064551,4078.9,4078.3,0.88700523]
[1758770442241,2.45152116,4079.1,4078.3,0.88700523]
[1758770442408,0.03064476,4079.0,4078.3,0.88700523]
[1758770442609,2.45158702,4079.0,4078.3,0.88700523]
[1758770442903,0.6855,4079.3,4078.4,0.9762055]
[1758770442904,0.03064551,4078.9,4078.4,0.9762055]
[1758770443238,0.03064326,4079.2,4078.4,0.9762055]
[1758770443540,0.03064326,4079.2,4078.4,3.42814188]
[1758770443541,0.1224,4078.6,4078.4,3.42814188]
[1758770443843,0.7134,4079.7,4078.5,2.48285151]
[1758770444138,0.1224,4079.0,4078.8,2.45168723]
[1758770444348,0.1224,4079.0,4078.8,0.49344786]
[1758770444534,0.1224,4079.0,4078.7,4.367]
[1758770444916,0.1224,4079.0,4078.8,2.45169359]
[1758770445416,0.1224,4079.2,4078.9,0.003]
[1758770445610,0.1224,4079.2,4078.7,4.367]
[1758770445816,0.001,4079.6,4078.8,0.03096323]
[1758770446119,0.001,4079.6,4078.9,0.64409632]
[1758770446449,0.001,4079.6,4079.0,3.98995892]
[1758770446965,0.001,4079.6,4079.1,2.45147596]
[1758770447126,0.001,4079.6,4079.2,2.45145379]
[1758770447455,0.001,4079.6,4079.3,0.00795637]
[1758770447648,0.001,4079.6,4079.1,2.45947284]
[1758770447815,0.001,4079.6,4079.2,0.64644728]
[1758770448015,0.001,4079.6,4079.3,0.00795676]
[1758770448642,0.001,4079.6,4079.4,0.02]
[1758770448846,0.001,4079.6,4079.5,2.45923546]
[1758770449044,0.001,4079.6,4079.5,2.46223546]
[1758770449236,0.001,4079.6,4079.5,3.03824969]
[1758770449445,0.001,4079.6,4079.5,4.9229689]
[1758770449652,0.001,4079.6,4079.5,6.95801423]
[1758770449957,0.001,4079.6,4079.5,9.40929502]
[1758770450156,0.001,4079.6,4079.5,9.41229502]
[1758770450467,0.001,4079.6,4079.5,6.95801423]
[1758770450882,0.001,4079.6,4078.6,0.023]
[1758770451169,0.001,4079.6,4078.8,2.45170148]
[1758770451468,0.001,4079.6,4079.2,2.451453]
[1758770451637,0.001,4079.6,4079.3,4.353]
[1758770451845,0.001,4079.6,4079.3,6.8043932]
[1758770452049,0.001,4079.6,4079.3,4.353]
[1758770452585,0.001,4079.6,4079.4,3.13178366]
[1758770452782,0.001,4079.6,4079.4,0.68044437]
[1758770453166,0.001,4079.6,4079.4,3.1317824]
[1758770453380,0.001,4079.6,4079.5,2.042]
[1758770453843,0.001,4079.6,4079.5,4.349]
[1758770454041,0.001,4079.6,4079.5,6.89394444]
[1758770454671,0.001,4079.6,4079.5,9.34822523]
[1758770454872,0.001,4079.6,4079.5,9.36822523]
[1758770455076,0.001,4079.6,4079.5,9.34822523]
[1758770455383,0.001,4079.6,4079.5,6.89694444]
[1758770455617,0.001,4079.6,4079.5,9.34822523]
[1758770455782,0.001,4079.6,4079.5,9.47062523]
[1758770456984,0.001,4079.6,4079.5,9.49062523]
[1758770457389,0.001,4079.6,4079.5,0.50294444]
[1758770457688,0.001,4079.6,4079.5,8.84028079]
[1758770459891,0.2407,4079.6,4079.5,8.84028079]
[1758770460487,0.001,4079.6,4079.5,6.389]
[1758770460690,0.001,4079.6,4077.1,1.02]
[1758770460894,0.7134,4079.5,4077.9,2.042]
[1758770461092,2.45170699,4078.8,4078.4,4.195]
[1758770461282,0.34720535,4079.4,4078.4,4.195]
[1758770461283,0.6863,4078.7,4078.4,4.195]
[1758770461480,0.6863,4078.6,4078.4,4.195]
[1758770461794,0.2313,4078.5,4078.4,4.195]
[1758770462198,2.45206218,4078.2,4078.1,0.00200001]
[1758770462801,3.13836218,4078.2,4078.1,0.00200001]
[1758770462976,2.45224257,4077.9,4077.8,0.003]
[1758770463293,2.4828956,4077.9,4077.8,0.003]
[1758770463486,3.1691956,4077.9,4077.8,0.003]
[1758770464892,3.9765373,4077.9,4077.8,0.003]
[1758770465112,3.13854257,4077.9,4077.8,0.003]
[1758770465305,3.1691956,4077.9,4077.8,0.003]
[1758770465667,0.6863,4077.9,4077.8,0.003]
[1758770465890,3.1691956,4077.9,4077.8,0.003]
[1758770466464,3.13854257,4077.9,4077.8,0.003]
[1758770467822,3.69761113,4077.9,4077.8,0.003]
[1758770469585,3.69761113,4077.9,4076.1,0.02]
[1758770469586,0.792,4077.8,4076.1,0.02]
[1758770469786,0.792,4077.5,4076.1,0.02]
[1758770470121,0.6863,4077.7,4076.1,3.605]
[1758770470423,0.6863,4077.7,4076.2,2.4087]
[1758770470424,3.0,4077.6,4076.2,2.4087]
[1758770470650,2.45272501,4077.1,4076.2,2.4087]
[1758770470796,3.03065603,4077.5,4076.2,2.4087]
[1758770471000,2.4528888,4076.9,4076.2,2.4087]
[1758770471539,2.48345924,4077.0,4076.2,2.4057]
[1758770471825,0.03065979,4077.0,4076.2,4.85894356]
[1758770471996,0.03065979,4077.0,4076.3,0.84669436]
[1758770472197,0.455,4077.4,4076.4,0.007998]
[1758770472386,2.45253117,4077.5,4076.4,0.007998]
[1758770472587,0.50225378,4077.8,4076.5,0.003]
[1758770473236,0.50225378,4077.8,4076.3,0.86869436]
[1758770473237,2.45276301,4077.1,4076.3,0.84669436]
[1758770473386,2.45270829,4077.2,4076.3,3.29989622]
[1758770473592,0.71,4077.5,4076.4,0.90278632]
[1758770473924,2.45255942,4077.4,4076.5,2.45308475]
[1758770474232,2.45278592,4077.0,4076.4,0.89478962]
[1758770474645,0.71,4077.5,4076.4,0.89478962]
[1758770474823,3.16253204,4077.5,4076.6,2.45301824]
[1758770475151,3.16248317,4077.5,4076.7,0.00799218]
[1758770475338,3.16248317,4077.5,4076.8,4.357]
[1758770475339,0.71,4077.5,4076.8,4.357]
[1758770475539,2.45256828,4077.4,4076.8,4.36499068]
[1758770475846,2.45260017,4077.4,4076.8,4.357]
[1758770476011,2.45261059,4077.3,4076.8,4.357]
[1758770476464,0.71,4077.2,4076.8,4.357]
[1758770476633,2.45283314,4077.0,4076.8,4.357]
[1758770476835,2.45284407,4076.9,4076.8,4.357]
[1758770477359,0.71,4077.0,4076.8,4.357]
[1758770478353,0.1224,4076.9,4076.8,4.357]
[1758770479348,2.81364407,4076.9,4076.8,4.357]
[1758770479558,0.8324,4076.9,4076.1,0.02]
[1758770479850,0.1224,4076.3,4076.1,0.02]
[1758770481160,3.1939311,4076.2,4076.1,0.02]
[1758770481458,3.4826584,4076.2,4076.1,0.02]
[1758770481655,3.16326529,4076.2,4076.1,0.02]
[1758770481821,2.45321587,4076.3,4076.1,0.02]
[1758770482038,2.45315183,4076.4,4076.1,0.02]
[1758770482373,2.45326529,4076.2,4076.1,0.02]
[1758770482873,3.1939311,4076.2,4076.1,0.02]
[1758770483171,3.16326529,4076.2,4076.1,0.02]
[1758770483336,3.1939311,4076.2,4076.1,0.02]
[1758770484241,3.75863935,4076.2,4076.1,0.02]
[1758770484744,0.03066581,4076.2,4076.1,0.02]
[1758770484944,2.45310062,4076.5,4076.1,0.02]
[1758770485465,0.4716,4076.7,4076.1,0.02]
[1758770485781,2.69123155,4077.0,4076.1,0.02]
[1758770485782,2.48345886,4077.0,4076.1,0.02]
[1758770486073,2.48345886,4077.0,4076.1,0.6613]
[1758770486074,2.45286377,4076.9,4076.1,0.6613]
[1758770486275,0.50225979,4077.0,4076.1,0.6613]
[1758770486487,2.45289105,4076.9,4076.1,0.6613]
[1758770486663,2.45296681,4076.7,4076.1,0.6613]
[1758770487001,2.45292217,4076.8,4076.1,0.6613]
[1758770487156,2.45290423,4076.8,4076.1,0.02]
[1758770487583,2.4529761,4076.7,4076.1,0.02]
[1758770488054,2.45326529,4076.2,4076.1,0.02]
[1758770488288,2.45317191,4076.4,4076.1,0.02]
[1758770488487,0.71,4076.2,4076.1,0.02]
[1758770488792,3.16326529,4076.2,4076.1,0.02]
[1758770489191,0.71,4076.2,4076.1,0.02]
[1758770489706,2.45316239,4076.4,4076.1,0.02]
[1758770489875,0.03066506,4076.3,4076.1,0.02]
[1758770490360,2.45323043,4076.3,4076.1,0.02]
[1758770490561,3.41165469,4076.2,4076.1,0.02]
[1758770491274,0.4716,4076.2,4076.1,0.02]
[1758770491477,0.71,4076.2,4076.1,0.02]
[1758770491679,3.16326529,4076.2,4076.1,0.02]
[1758770491895,2.69166529,4076.2,4076.1,0.02]
[1758770492098,2.45326529,4076.2,4076.1,0.02]
[1758770492462,3.16326529,4076.2,4076.1,0.02]
[1758770493881,0.03066506,4076.3,4076.1,0.02]
[1758770494087,0.27005904,4077.1,4076.1,0.02]
[1758770494284,0.03165904,4077.1,4076.3,2.45320511]
[1758770494481,0.03165904,4077.1,4076.1,0.02]
[1758770494482,0.1224,4076.7,4076.1,0.02]
[1758770495298,2.57540515,4076.7,4076.1,0.02]
[1758770495607,0.1224,4076.7,4076.1,0.02]
[1758770495972,0.1224,4076.7,4076.1,2.47330627]
[1758770496171,2.45326529,4076.2,4076.1,0.02]
[1758770496368,2.69859182,4076.2,4076.1,0.02]
[1758770496588,3.40859182,4076.2,4076.1,0.02]
[1758770497171,3.1939311,4076.2,4076.1,0.02]
[1758770497707,2.4839311,4076.2,4076.1,0.02]
[1758770498118,3.1939311,4076.2,4076.1,0.02]
[1758770499616,2.7223311,4076.2,4076.1,0.02]
[1758770499919,2.45326529,4076.2,4076.1,0.02]
[1758770500424,0.03066506,4076.3,4076.1,0.02]
[1758770500930,0.03066355,4076.5,4076.1,0.02]
[1758770501086,2.45326529,4076.2,4076.1,0.02]
[1758770501284,2.48393034,4076.3,4076.1,0.02]
[1758770501525,0.03066506,4076.3,4076.1,0.02]
[1758770501726,0.03066506,4076.3,4076.1,0.022]
[1758770502210,2.45326529,4076.2,4076.1,0.022]
[1758770502577,3.12446529,4076.2,4076.1,0.022]
[1758770502777,2.45326529,4076.2,4076.1,0.022]
[1758770503011,3.64171334,4076.2,4076.1,0.022]
[1758770505415,3.64171334,4076.2,4075.4,1e-08]
[1758770505416,2.45368666,4075.5,4075.4,1e-08]
[1758770505616,31.70458736,4075.5,4075.4,1e-08]
[1758770505778,32.34511628,4075.5,4075.4,1e-08]
[1758770505978,34.63791691,4075.5,4075.4,1e-08]
[1758770506417,35.13649816,4075.5,4075.4,1e-08]
[1758770506584,30.80249816,4075.5,4075.4,1e-08]
[1758770506912,31.96973336,4075.5,4075.4,1e-08]
[1758770507322,7.79170311,4075.5,4075.4,1e-08]
[1758770507517,2.78850311,4075.5,4075.4,1e-08]
[1758770507686,2.81917419,4075.5,4075.4,1e-08]
[1758770507887,3.45970311,4075.5,4075.4,1e-08]
[1758770508819,3.49037419,4075.5,4075.4,1e-08]
[1758770509322,4.51776825,4075.5,4075.4,1e-08]
[1758770509506,10.81937419,4075.5,4075.4,1e-08]
[1758770509820,10.78870311,4075.5,4075.4,1e-08]
[1758770510714,10.40388666,4075.5,4075.4,1e-08]
[1758770511221,2.45386729,4075.2,4075.1,0.02]
[1758770511397,2.45386729,4075.2,4075.1,1e-08]
[1758770511398,33.22792433,4075.2,4075.1,1e-08]
[1758770511596,33.86845099,4075.2,4075.1,1e-08]
[1758770511925,33.86845099,4075.2,4072.9,2.45523764]
[1758770511926,0.792,4074.8,4071.9,0.50080983]
[1758770512097,3.0,4074.0,4072.3,0.022]
[1758770512296,4.11168312,4073.9,4072.6,0.003]
[1758770512512,2.45450549,4074.2,4073.1,2.47702224]
[1758770512819,6.78741544,4074.3,4073.2,0.24770222]
[1758770513021,0.2354,4074.5,4073.3,0.00804206]
[1758770513225,4.335,4074.6,4073.3,0.03304206]
[1758770513428,2.45419665,4074.7,4073.3,0.03304206]
[1758770513631,26.22022962,4074.8,4073.3,2.4800066]
[1758770513926,0.03067785,4074.6,4073.4,0.27466088]
[1758770514221,0.03067785,4074.6,4073.2,0.24770222]
[1758770514222,0.6712,4074.5,4073.2,3.19870222]
[1758770514419,0.03067936,4074.4,4073.1,0.0189]
[1758770514628,4.335,4074.3,4073.1,0.0189]
[1758770514828,4.335,4074.2,4073.1,0.0189]
[1758770514998,0.03068011,4074.3,4073.2,2.48007217]
[1758770515189,2.45443298,4074.3,4073.2,2.48007217]
[1758770515385,0.03068086,4074.2,4073.3,2.95042755]
[1758770515585,0.03068086,4074.2,4073.4,2.45495001]
[1758770515795,2.48509356,4074.3,4073.3,0.49541565]
[1758770515994,2.45446958,4074.2,4073.2,2.45501363]
[1758770516250,2.45455626,4074.1,4073.2,2.45501363]
[1758770516444,0.03068011,4074.3,4073.4,2.45489901]
[1758770516602,0.2354,4074.9,4073.9,2.45461667]
[1758770516808,2.68950405,4074.9,4073.9,2.45464363]
[1758770517003,2.45417224,4074.7,4073.8,2.45469827]
[1758770517223,0.03067785,4074.6,4073.4,2.45490087]
[1758770517537,2.45447853,4074.2,4073.2,4.50001875]
[1758770517746,0.03067936,4074.4,4073.5,2.45484269]
[1758770517950,0.03067936,4074.4,4073.6,2.45482498]
[1758770518112,2.48502883,4074.4,4073.5,2.45787988]
[1758770518321,0.03067936,4074.4,4073.5,0.70098901]
[1758770518631,0.03067936,4074.4,4073.2,2.045]
[1758770518632,0.0306771,4074.7,4073.6,0.022]
[1758770518802,0.03067559,4074.9,4073.6,0.025]
[1758770519007,2.454157,4074.8,4073.8,2.45465429]
[1758770519204,0.0306771,4074.7,4073.9,2.4546481]
[1758770519405,0.1224,4074.4,4073.9,0.003]
[1758770519604,0.1224,4074.4,4074.2,2.4544669]
[1758770519828,22.32102962,4075.6,4074.2,0.1224]
[1758770519829,0.1224,4074.9,4074.2,0.1224]
[1758770520028,0.1224,4074.9,4074.4,2.45431526]
[1758770520203,0.1224,4074.9,4074.6,2.45417889]
[1758770520534,0.1224,4074.9,4074.7,2.45415653]
[1758770520735,0.1224,4074.9,4074.5,4.52123641]
[1758770521037,0.1224,4074.9,4074.5,1.14340166]
[1758770521337,0.1224,4074.9,4074.4,2.045]
[1758770521635,0.1224,4074.9,4074.2,4.62181703]
[1758770521824,0.1224,4074.9,4074.3,2.45440883]
[1758770522022,0.1224,4074.9,4074.2,4.62185323]
[1758770522422,0.1224,4074.9,4074.5,2.45426394]
[1758770522630,0.1224,4074.9,4074.5,0.46246639]
[1758770522833,0.1224,4074.9,4074.5,0.46546639]
[1758770523038,0.1224,4074.9,4074.6,0.003]
[1758770523440,0.1224,4074.9,4074.8,2.45410817]
[1758770523867,0.1224,4074.9,4074.6,0.003]
[1758770524770,0.1224,4074.9,4074.5,0.022]
[1758770524965,0.1224,4074.9,4074.3,2.4574003]
[1758770525171,0.1224,4074.9,4074.4,0.89828003]
[1758770525572,0.1224,4074.9,4074.2,0.1224]
[1758770525741,0.1224,4074.9,4074.3,6.373]
[1758770526367,0.1224,4074.9,4074.3,8.82740872]
[1758770526664,0.1224,4074.9,4074.3,6.373]
[1758770526880,2.45730433,4069.5,4069.4,1.0]
[1758770527036,0.1224,4069.4,4068.3,1.1234234]
[1758770527239,0.1224,4069.4,4067.3,10.40023846]
[1758770527240,24.84062222,4068.4,4067.3,10.40023846]
[1758770527435,24.34380266,4067.4,4067.3,0.96099451]
[1758770527670,2.45869394,4067.2,4067.1,1e-08]
[1758770527831,0.792,4066.7,4064.3,0.20116884]
[1758770528039,31.26470284,4067.2,4064.3,0.20116884]
[1758770528040,3.0,4064.4,4064.3,0.20116884]
[1758770528234,21.88522962,4064.4,4064.3,0.20116884]
[1758770528484,21.88522962,4064.4,4064.0,0.1]
[1758770528485,3.0,4064.3,4064.0,0.1]
[1758770528688,2.49126519,4064.2,4064.0,0.1]
[1758770528987,0.03075636,4064.2,4064.0,0.1]
[1758770529132,0.792,4064.5,4064.0,0.1]
[1758770529337,6.80409875,4064.7,4064.0,0.1]
[1758770529338,0.792,4064.3,4064.0,0.1]
[1758770529538,22.70798598,4064.2,4064.0,0.1]
[1758770529740,7.30012985,4064.7,4064.0,0.1]
[1758770529741,6.80409875,4064.7,4064.0,0.1]
[1758770529993,6.80409875,4064.7,4064.1,0.7358]
[1758770530140,8.772311,4065.0,4063.7,0.0074884]
[1758770530340,8.772311,4065.0,4063.8,0.00818421]
[1758770530540,0.03075106,4064.9,4063.2,2.38854901]
[1758770530736,5.5004317,4065.6,4063.3,0.00818914]
[1758770530974,0.792,4064.9,4063.2,2.38854901]
[1758770531168,5.5004317,4065.3,4063.2,2.38854901]
[1758770531407,5.5004317,4065.3,4065.2,2.45990357]
[1758770531603,5.332,4067.2,4065.2,2.046]
[1758770531604,5.5004317,4065.9,4065.2,2.046]
[1758770531899,5.5004317,4065.9,4065.6,2.45964022]
[1758770532117,5.5004317,4065.9,4063.2,2.38854901]
[1758770532305,0.58078742,4065.8,4063.3,3.2563549]
[1758770532505,3.58078742,4065.8,4063.4,0.6985]
[1758770532825,3.58078742,4065.8,4063.3,2.5578549]
[1758770532826,0.03074425,4065.8,4063.5,0.6985]
[1758770533021,0.02,4065.9,4064.0,2.46057114]
[1758770533221,0.02,4065.9,4064.1,2.05517573]
[1758770533518,0.02,4065.9,4064.1,5.2060643]
[1758770533678,0.02,4065.9,4065.6,2.45965118]
[1758770533878,0.02,4065.9,4064.2,0.6985]
[1758770534120,0.02,4065.9,4065.1,2.4599533]
[1758770534428,0.017,4065.9,4065.7,2.45958772]
[1758770534596,0.017,4065.9,4065.8,2.05516117]
[1758770534798,0.017,4065.9,4065.8,2.7455]
[1758770535014,0.017,4065.9,4065.8,0.2326]
[1758770535216,0.017,4065.9,4065.8,0.6985]
[1758770536123,0.02,4066.9,4066.8,2.45893577]
[1758770536333,0.02,4066.9,4065.7,8.85859164]
[1758770536334,0.02,4066.9,4065.9,0.6985]
[1758770536628,0.02,4066.9,4066.8,2.45893577]
[1758770536837,0.02,4066.9,4066.8,2.70482935]
[1758770537143,0.02,4066.9,4066.8,3.52572935]
[1758770537645,0.02,4066.9,4066.2,2.2806]
[1758770538049,0.02,4066.9,4065.2,0.2326]
[1758770538246,0.02,4066.9,4065.3,0.4659]
[1758770538447,0.03073669,4066.8,4065.4,2.471]
[1758770538656,0.02,4066.9,4065.5,0.76774783]
[1758770538861,0.02,4066.9,4064.8,5.377]
[1758770538862,0.27983669,4066.8,4064.8,5.377]
[1758770539155,0.27983669,4066.8,4064.9,2.048]
[1758770539443,3.0,4066.5,4065.0,7.432]
[1758770539647,0.03073972,4066.4,4065.0,7.432]
[1758770539811,0.03073972,4066.4,4065.0,0.78979]
[1758770540006,0.03073972,4066.4,4064.7,0.4659]
[1758770540007,0.2491,4066.3,4064.7,0.4659]
[1758770540346,2.45960358,4065.7,4064.7,0.4659]
[1758770540552,0.03074576,4065.6,4064.8,3.163]
[1758770540847,2.459726,4065.5,4065.4,0.002]
[1758770541013,6.142826,4065.5,4065.4,0.002]
[1758770541214,7.00614415,4065.5,4065.4,0.002]
[1758770541727,0.2491,4066.2,4065.4,0.002]
[1758770542028,0.435,4066.8,4065.4,0.002]
[1758770542029,0.27984198,4066.1,4065.4,0.002]
[1758770542440,3.0,4066.7,4065.2,1.95]
[1758770542642,0.001,4066.8,4065.3,0.70666019]
[1758770542832,0.001,4066.8,4065.4,1.7465605]
[1758770543033,0.001,4066.8,4066.7,2.45899623]
[1758770543530,0.001,4066.8,4066.7,8.51649623]
[1758770543736,0.001,4066.8,4066.7,10.56449623]
[1758770543955,0.001,4066.8,4065.9,0.6985]
[1758770544138,0.001,4066.8,4066.0,2.048]
[1758770544139,0.03173669,4066.8,4066.0,2.048]
[1758770544334,0.03173669,4066.8,4065.5,0.6985]
[1758770544531,0.001,4066.8,4065.6,8.11565698]
[1758770544779,0.001,4066.8,4066.7,2.45899623]
[1758770544983,0.001,4066.8,4066.7,9.86399623]
[1758770545266,0.02,4066.9,4066.8,2.45893577]
[1758770545567,0.02,4066.9,4066.8,3.15743577]
[1758770545795,0.02,4066.9,4066.8,10.55543577]
[1758770546133,0.02,4066.9,4066.8,11.85687897]
[1758770546666,1e-08,4066.9,4066.8,11.85687897]
[1758770547679,1e-08,4067.9,4067.8,2.45833128]
[1758770547845,0.02,4068.9,4068.8,2.45772709]
[1758770548065,0.02,4069.9,4069.8,2.4571232]
[1758770548234,0.02,4069.9,4069.8,9.8401232]
[1758770548437,0.02,4069.9,4068.8,0.2326]
[1758770548665,0.02,4069.9,4069.7,2.45716053]
[1758770548877,0.02,4069.9,4069.7,2.45718069]
[1758770549240,0.02,4069.9,4069.6,2.45723425]
[1758770549581,0.02,4069.9,4069.4,2.048]
[1758770549796,0.02,4069.9,4069.2,5.338]
[1758770550006,2.477123,4069.9,4069.1,7.198]
[1758770550212,2.45717565,4069.8,4069.1,7.198]
[1758770550366,0.51340689,4069.9,4069.2,2.05610651]
[1758770550706,3.0,4069.5,4067.1,0.02]
[1758770550876,0.27981705,4069.4,4067.9,2.45826093]
[1758770551077,0.6831,4069.3,4067.5,2.45851259]
[1758770551284,0.71381856,4069.2,4067.1,0.02]
[1758770551463,2.45798085,4068.4,4067.6,2.048]
[1758770551779,0.03072536,4068.3,4067.6,2.048]
[1758770551976,2.4580432,4068.3,4067.4,2.45856357]
[1758770552209,0.03072611,4068.2,4067.5,7.36]
[1758770552369,0.2491,4068.2,4067.5,7.36]
[1758770552563,0.03072687,4068.1,4067.1,0.02]
[1758770552898,2.48888018,4068.1,4067.1,2.47869545]
[1758770553201,2.45827085,4067.9,4067.1,5.324]
[1758770553368,2.45844421,4067.7,4067.1,0.02]
[1758770553563,3.14135795,4068.0,4067.1,0.02]
[1758770553564,0.792,4069.4,4067.1,0.02]
[1758770553800,0.2491,4068.8,4067.2,2.276]
[1758770554000,0.63455342,4069.3,4067.3,0.6985]
[1758770554309,0.792,4069.1,4067.4,5.62026262]
[1758770554604,2.45766669,4068.9,4067.5,7.365]
[1758770554900,0.03072158,4068.8,4067.6,2.45845215]
[1758770555203,0.3853987,4069.3,4067.5,7.365]
[1758770555402,0.3853987,4069.3,4067.7,0.00812589]
[1758770555563,0.27981856,4069.2,4067.8,7.356]
[1758770555769,0.2491,4069.8,4068.5,2.45785983]
[1758770555983,2.48790112,4069.7,4068.6,2.45781428]
[1758770556192,2.48790112,4069.7,4068.7,2.048]
[1758770556193,5.45728956,4069.6,4068.7,2.048]
[1758770556388,5.45728956,4069.6,4067.9,2.45827085]
[1758770556389,3.0,4069.4,4067.7,0.80716259]
[1758770556572,0.03071781,4069.3,4068.4,2.45790973]
[1758770556877,0.2491,4069.2,4067.1,0.2526]
[1758770557082,0.2491,4069.2,4067.8,2.45832245]
[1758770557083,2.48827573,4069.1,4067.8,2.45832245]
[1758770557306,2.48827573,4069.1,4067.2,6.985]
[1758770557307,2.45768883,4068.9,4067.2,6.985]
[1758770557605,0.1224,4068.0,4067.3,0.1224]
[1758770557774,0.1224,4067.5,4067.4,2.048]
[1758770558178,0.1224,4067.5,4067.1,2.47874483]
[1758770558179,0.1224,4067.5,4067.1,0.02]